fUSD/lending_fUSD_20251201
["ID","MTS","AMOUNT","RATE_DAILY","PERIOD"]
[395295421,1764593438188,-489.23389195,0.00014765,2]
[395295422,1764593438199,-2229.18840639,0.00014765,2]
[395295423,1764593438215,-85500.0,0.00014765,2]
[395295424,1764593438226,-4342.13988055,0.00014765,2]
[395295425,1764593438237,-854.12482447,0.00014765,2]
[395295426,1764593438250,-1904.6323918,0.00014765,2]
[395295427,1764593438261,-336.11388062,0.00014765,2]
[395295428,1764593438274,-261.95990168,0.00014765,2]
[395295429,1764593438286,-1174.0667096,0.00014765,2]
[395295490,1764593443848,-198.8668034,0.00013719,2]
[395295491,1764593443858,-1086.1231966,0.00014666,2]
[395295492,1764593443869,-2932.73577158,0.00014666,2]
[395295494,1764593443879,-155.36543956,0.00014764,2]
[395295495,1764593443888,-500.0,0.00014764,2]
[395295496,1764593443898,-530.52244012,0.00014764,2]
[395295497,1764593443907,-500.0,0.00014764,2]
[395295498,1764593443916,-500.0,0.00014764,2]
[395295499,1764593443926,-500.0,0.00014764,2]
[395295500,1764593443937,-500.0,0.00014764,2]
[395295501,1764593443946,-500.0,0.00014764,2]
[395295502,1764593443955,-500.0,0.00014764,2]
[395295503,1764593443964,-500.0,0.00014764,2]
[395295504,1764593443973,-35422.2863487,0.00014765,2]
[395295505,1764593443985,-1322.53047701,0.00014765,2]
[395295506,1764593443995,-2490.55443022,0.00014765,2]
[395295507,1764593444006,-1700.0,0.00014765,2]
[395295508,1764593444017,-4299.295,0.00014765,2]
[395295509,1764593444027,-4253.4,0.00014765,2]
[395295510,1764593444038,-7937.57904942,0.00014765,2]
[395295511,1764593444048,-17597.26889436,0.00014765,2]
[395295512,1764593444059,-4253.4,0.00014765,2]
[395295513,1764593444074,-578.57186378,0.00014765,2]
[395295514,1764593444086,-4287.77,0.00014765,2]
[395295515,1764593444096,-8513.1,0.00014765,2]
[395295516,1764593444107,-14653.69573843,0.00014765,2]
[395295517,1764593444116,-320.0,0.00014766,2]
[395295518,1764593444125,-600.6608,0.00014768,2]
[395295519,1764593444134,-88572.1177,0.00014768,2]
[395295520,1764593444144,-2500.0,0.00014768,2]
[395295521,1764593444169,-1369.0,0.00014796,2]
[395295523,1764593444178,-8101.2349228,0.00014797,2]
[395295524,1764593444188,-158.0,0.00014856,2]
[395295525,1764593444197,-940.57,0.00014859,2]
[395295526,1764593444208,-151.0,0.0001486,2]
[395295527,1764593444217,-151.0,0.0001486,2]
[395295528,1764593444227,-151.0,0.0001486,2]
[395295529,1764593444235,-151.0,0.0001486,2]
[395295530,1764593444245,-200.0,0.0001486,2]
[395295531,1764593444254,-200.0,0.0001486,2]
[395295532,1764593444264,-151.0,0.0001486,2]
[395295533,1764593444274,-151.0,0.0001486,2]
[395295534,1764593444284,-151.0,0.0001486,2]
[395295535,1764593444294,-151.0,0.0001486,2]
[395295536,1764593444304,-151.0,0.0001486,2]
[395295537,1764593444315,-151.0,0.0001486,2]
[395295538,1764593444326,-151.0,0.0001486,2]
[395295539,1764593444339,-151.0,0.0001486,2]
[395295540,1764593444350,-151.0,0.0001486,2]
[395295541,1764593444360,-151.0,0.0001486,2]
[395295542,1764593444370,-151.0,0.0001486,2]
[395295543,1764593444380,-151.0,0.0001486,2]
[395295544,1764593444392,-151.0,0.0001486,2]
[395295545,1764593444402,-151.0,0.0001486,2]
[395295546,1764593444412,-151.0,0.0001486,2]
[395295547,1764593444423,-500.0,0.0001486,2]
[395295548,1764593444437,-151.0,0.0001486,2]
[395295549,1764593444448,-500.0,0.0001486,2]
[395295550,1764593444458,-151.0,0.0001486,2]
[395295551,1764593444468,-500.0,0.0001486,2]
[395295552,1764593444479,-151.0,0.0001486,2]
[395295553,1764593444488,-500.0,0.0001486,2]
[395295554,1764593444499,-151.0,0.0001486,2]
[395295561,1764593444858,-500.0,0.0001486,2]
[395295562,1764593444878,-151.0,0.0001486,2]
[395295563,1764593444887,-500.0,0.0001486,2]
[395295564,1764593444896,-151.0,0.0001486,2]
[395295565,1764593444906,-500.0,0.0001486,2]
[395295566,1764593444915,-500.0,0.0001486,2]
[395295567,1764593444926,-151.0,0.0001486,2]
[395295569,1764593444937,-500.0,0.0001486,2]
[395295570,1764593444947,-151.0,0.0001486,2]
[395295571,1764593444956,-500.0,0.0001486,2]
[395295572,1764593444966,-151.0,0.0001486,2]
[395295573,1764593444975,-500.0,0.0001486,2]
[395295574,1764593444985,-151.0,0.0001486,2]
[395295575,1764593444996,-500.0,0.0001486,2]
[395295576,1764593445006,-151.0,0.0001486,2]
[395295577,1764593445017,-151.0,0.0001486,2]
[395295578,1764593445026,-151.0,0.0001486,2]
[395295579,1764593445036,-151.0,0.0001486,2]
[395295580,1764593445045,-151.0,0.0001486,2]
[395295582,1764593445056,-500.0,0.0001486,2]
[395295583,1764593445066,-200.0,0.0001486,2]
[395295584,1764593445075,-2311.776,0.00014865,2]
[395295585,1764593445085,-177.089,0.00014865,2]
[395295586,1764593445095,-2249.96,0.00014865,2]
[395295587,1764593445104,-20896.17,0.00014865,2]
[395295588,1764593445113,-5550.72968119,0.00014867,2]
[395295589,1764593445125,-5212.68866277,0.00014867,2]
[395295590,1764593445134,-500.0,0.00014867,2]
[395295591,1764593445144,-950.24,0.00014867,2]
[395295592,1764593445162,-950.24,0.00014867,2]
[395295593,1764593445172,-950.24,0.00014867,2]
[395295594,1764593445181,-950.24,0.00014867,2]
[395295595,1764593445191,-950.24,0.00014867,2]
[395295596,1764593445205,-950.24,0.00014867,2]
[395295597,1764593445215,-950.24,0.00014867,2]
[395295598,1764593445224,-950.24,0.00014867,2]
[395295599,1764593445234,-950.24,0.00014867,2]
[395295600,1764593445243,-950.24,0.00014867,2]
[395295601,1764593445254,-950.24,0.00014867,2]
[395295602,1764593445264,-950.24,0.00014867,2]
[395295603,1764593445274,-950.24,0.00014867,2]
[395295604,1764593445283,-950.24,0.00014867,2]
[395295605,1764593445293,-950.24,0.00014867,2]
[395295606,1764593445303,-950.24,0.00014867,2]
[395295607,1764593445312,-950.24,0.00014867,2]
[395295608,1764593445322,-950.24,0.00014867,2]
[395295609,1764593445331,-950.24,0.00014867,2]
[395295610,1764593445341,-950.24,0.00014867,2]
[395295611,1764593445351,-950.24,0.00014867,2]
[395295612,1764593445361,-950.24,0.00014867,2]
[395295613,1764593445372,-950.24,0.00014867,2]
[395295614,1764593445382,-950.29022965,0.00014867,2]
[395295615,1764593445392,-1000.0,0.00014868,2]
[395295616,1764593445402,-8714.6425447,0.00014914,2]
[395295623,1764593446112,-0.00287544,0.00014914,2]
[395295624,1764593446129,-77.46251334,0.00014914,2]
[395295625,1764593446138,-166.66,0.00014924,2]
[395295626,1764593446148,-300.0,0.00014959,2]
[395295627,1764593446159,-199.57748666,0.00014959,2]
[395295628,1764593446172,-100.42251334,0.00014959,2]
[395295629,1764593446181,-328.07748666,0.00014968,2]
[395295630,1764593446216,-171.92251334,0.00014968,2]
[395295631,1764593446225,-500.0,0.00014968,2]
[395295632,1764593446234,-259.0,0.00015064,2]
[395295633,1764593446243,-368.0,0.00015074,2]
[395295634,1764593446253,-416.17748666,0.00015094,2]
[395295636,1764593446264,-254.94538776,0.00015094,2]
[395295638,1764593446314,-4018.85896814,0.00014914,2]
[395295639,1764593446324,-764.87712558,0.00015094,2]
[395295640,1764593446333,-160.19,0.00015099,2]
[395295641,1764593446342,-1385.0,0.00015124,2]
[395295642,1764593446351,-940.57,0.00015133,2]
[395295643,1764593446361,-231.3,0.00015142,2]
[395295644,1764593446370,-8792.10793348,0.00015162,2]
[395295645,1764593446379,-234.92,0.00015199,2]
[395295646,1764593446388,-940.57,0.00015407,2]
[395295647,1764593446401,-200.0,0.00015408,2]
[395295648,1764593446411,-500.0,0.00015408,2]
[395295649,1764593446420,-200.0,0.00015408,2]
[395295650,1764593446429,-295.79603794,0.00015447,2]
[395295651,1764593446439,-166.66,0.0001554,2]
[395295652,1764593446448,-250.0,0.0001564,2]
[395295653,1764593446458,-940.57,0.00015681,2]
[395295654,1764593446468,-1485.83735201,0.00015797,2]
[395295655,1764593446478,-300.0,0.00015824,2]
[395295656,1764593446487,-514.84070869,0.00015824,2]
[395295657,1764593446497,-500.0,0.00015824,2]
[395295659,1764593446506,-2016.36740754,0.00015824,2]
[395295660,1764593446515,-620.0,0.00015824,2]
[395295661,1764593446524,-578.20924308,0.00015824,2]
[395295662,1764593446533,-6000.0,0.00015824,2]
[395295663,1764593446542,-311.1,0.00015824,2]
[395295664,1764593446551,-151.0,0.00015824,2]
[395295665,1764593446560,-2500.0,0.00015824,2]
[395295666,1764593446570,-2500.0,0.00015824,2]
[395295667,1764593446579,-602.94574228,0.00015824,2]
[395295668,1764593446587,-248.71531821,0.00015824,2]
[395295669,1764593446597,-2750.0,0.00015824,2]
[395295670,1764593446606,-1041.53388498,0.00015824,2]
[395295671,1764593446615,-151.0,0.00015824,2]
[395295672,1764593446625,-151.0,0.00015824,2]
[395295673,1764593446634,-3003.97138181,0.00015824,2]
[395295674,1764593446643,-500.0,0.00015824,2]
[395295675,1764593446655,-500.0,0.00015824,2]
[395295676,1764593446664,-500.0,0.00015824,2]
[395295677,1764593446674,-500.0,0.00015824,2]
[395295678,1764593446684,-500.0,0.00015824,2]
[395295679,1764593446695,-500.0,0.00015824,2]
[395295680,1764593446704,-500.0,0.00015824,2]
[395295681,1764593446714,-500.0,0.00015824,2]
[395295682,1764593446723,-500.0,0.00015824,2]
[395295683,1764593446732,-500.0,0.00015824,2]
[395295684,1764593446741,-500.0,0.00015824,2]
[395295685,1764593446750,-500.0,0.00015824,2]
[395295686,1764593446760,-500.0,0.00015824,2]
[395295687,1764593446769,-500.0,0.00015824,2]
[395295688,1764593446779,-2750.0,0.00015879,2]
[395295689,1764593446788,-966.81009397,0.000159,2]
[395295690,1764593446798,-2750.0,0.00015934,2]
[395295691,1764593446807,-940.57,0.00015955,2]
[395295692,1764593446817,-200.0,0.00015956,2]
[395295693,1764593446827,-500.0,0.00015956,2]
[395295694,1764593446836,-200.0,0.00015956,2]
[395295695,1764593446846,-161.77823091,0.00015973,2]
[395295696,1764593446855,-500.0,0.00015973,2]
[395295697,1764593446865,-503.03874905,0.00015973,2]
[395295698,1764593446874,-500.0,0.00015973,2]
[395295699,1764593446883,-453.79493009,0.00015973,2]
[395295700,1764593446893,-500.0,0.00015973,2]
[395295701,1764593446906,-570.07624851,0.00015973,2]
[395295702,1764593446917,-506.68012113,0.00015973,2]
[395295703,1764593446927,-500.0,0.00015973,2]
[395295704,1764593446936,-500.0,0.00015973,2]
[395295705,1764593446949,-500.0,0.00015973,2]
[395295706,1764593446959,-500.0,0.00015973,2]
[395295707,1764593446968,-207.34062351,0.00015973,2]
[395295708,1764593446979,-562.08122642,0.00015973,2]
[395295709,1764593446988,-339.96710079,0.00015973,2]
[395295710,1764593446998,-500.0,0.00015973,2]
[395295711,1764593447006,-500.0,0.00015973,2]
[395295712,1764593447016,-500.45943647,0.00015973,2]
[395295713,1764593447025,-500.0,0.00015973,2]
[395295714,1764593447039,-500.0,0.00015973,2]
[395295715,1764593447048,-500.0,0.00015973,2]
[395295716,1764593447056,-500.0,0.00015973,2]
[395295717,1764593447065,-500.0,0.00015973,2]
[395295718,1764593447074,-500.0,0.00015973,2]
[395295719,1764593447083,-500.0,0.00015973,2]
[395295720,1764593447092,-500.0,0.00015973,2]
[395295721,1764593447101,-500.0,0.00015973,2]
[395295722,1764593447111,-500.0,0.00015973,2]
[395295723,1764593447120,-500.0,0.00015973,2]
[395295724,1764593447129,-500.0,0.00015973,2]
[395295725,1764593447139,-500.0,0.00015973,2]
[395295726,1764593447151,-534.66515965,0.00015973,2]
[395295727,1764593447161,-500.0,0.00015973,2]
[395295728,1764593447170,-160.09780403,0.00015973,2]
[395295729,1764593447180,-165.06363794,0.00015973,2]
[395295730,1764593447190,-160.09684565,0.00015973,2]
[395295731,1764593447199,-502.43978726,0.00015973,2]
[395295732,1764593447207,-500.0,0.00015973,2]
[395295733,1764593447217,-500.0,0.00015973,2]
[395295734,1764593447226,-500.0,0.00015973,2]
[395295735,1764593447235,-500.0,0.00015973,2]
[395295736,1764593447245,-500.0,0.00015973,2]
[395295737,1764593447254,-420.0,0.00015981,2]
[395295738,1764593447264,-231.3,0.00015983,2]
[395295739,1764593447273,-2750.0,0.00015989,2]
[395295740,1764593447282,-151.0,0.00015997,2]
[395295741,1764593447291,-257239.36397116,0.00016,4]
[395295742,1764593447300,-200.0,0.00016,2]
[395295743,1764593447309,-200.0,0.00016,2]
[395295744,1764593447319,-4745.80302,0.00016,2]
[395295745,1764593447329,-200.0,0.00016,2]
[395295746,1764593447338,-2750.0,0.00016044,2]
[395295747,1764593447347,-2750.0,0.00016099,2]
[395295748,1764593447357,-1004.4,0.00016116,2]
[395295749,1764593447366,-2750.0,0.00016154,2]
[395295750,1764593447375,-166.66,0.00016156,2]
[395295751,1764593447385,-200.0,0.0001616,2]
[395295752,1764593447395,-200.0,0.0001616,2]
[395295753,1764593447406,-5000.00257072,0.000162,5]
[395295754,1764593447416,-2750.0,0.00016209,2]
[395295755,1764593447425,-2559.0,0.00016216,2]
[395295756,1764593447435,-940.57,0.00016229,2]
[395295757,1764593447444,-978.0,0.00016261,2]
[395295758,1764593447453,-150.0,0.00016261,2]
[395295759,1764593447462,-500.0,0.00016261,2]
[395295760,1764593447472,-500.0,0.00016261,2]
[395295761,1764593447481,-1381.0,0.00016261,2]
[395295762,1764593447490,-226.93276728,0.00016261,2]
[395295763,1764593447501,-500.0,0.00016261,2]
[395295764,1764593447510,-500.0,0.00016261,2]
[395295765,1764593447519,-150.0,0.00016261,2]
[395295766,1764593447528,-150.0,0.00016261,2]
[395295767,1764593447537,-200.0,0.00016261,2]
[395295768,1764593447547,-500.0,0.00016261,2]
[395295769,1764593447556,-150.0,0.00016261,2]
[395295770,1764593447565,-500.0,0.00016261,2]
[395295771,1764593447574,-150.0,0.00016261,2]
[395295772,1764593447583,-2750.0,0.00016264,2]
[395295773,1764593447592,-2559.0,0.00016289,2]
[395295774,1764593447602,-1000.0,0.000163,2]
[395295775,1764593447610,-2750.0,0.00016319,2]
[395295776,1764593447620,-200.0,0.00016322,2]
[395295777,1764593447629,-200.0,0.0001634,2]
[395295778,1764593447638,-236.33,0.00016366,2]
[395295779,1764593447649,-533.88981491,0.00016372,2]
[395295780,1764593447658,-642.94,0.00016372,2]
[395295781,1764593447667,-151.0,0.00016372,2]
[395295782,1764593447675,-978.0,0.00016398,2]
[395295783,1764593447684,-150.0,0.00016398,2]
[395295784,1764593447693,-500.0,0.00016398,2]
[395295785,1764593447702,-500.0,0.00016398,2]
[395295786,1764593447711,-1381.0,0.00016398,2]
[395295787,1764593447721,-500.0,0.00016398,2]
[395295788,1764593447730,-500.0,0.00016398,2]
[395295789,1764593447739,-150.57489667,0.00016398,2]
[395295790,1764593447747,-500.0,0.00016398,2]
[395295791,1764593447757,-500.0,0.00016398,2]
[395295792,1764593447766,-150.0,0.00016398,2]
[395295793,1764593447774,-227.0,0.000164,2]
[395295794,1764593447783,-318.0,0.000164,2]
[395295795,1764593447793,-182.0,0.000164,2]
[395295796,1764593447802,-183.27980192,0.000164,2]
[395295797,1764593447811,-1000.0,0.000164,2]
[395295798,1764593447820,-2559.0,0.00016412,2]
[395295799,1764593447829,-500.0,0.00016438,2]
[395295800,1764593447838,-150.0,0.00016438,2]
[395295801,1764593447847,-500.03829527,0.00016438,2]
[395295802,1764593447856,-500.03829527,0.00016438,2]
[395295803,1764593447865,-500.03829527,0.00016438,2]
[395295804,1764593447875,-500.03829527,0.00016438,2]
[395295805,1764593447884,-500.03829527,0.00016438,2]
[395295806,1764593447893,-500.03829527,0.00016438,2]
[395295807,1764593447903,-500.03829527,0.00016438,2]
[395295808,1764593447912,-500.03829527,0.00016438,2]
[395295809,1764593447920,-500.03829527,0.00016438,2]
[395295810,1764593447930,-500.03829527,0.00016438,2]
[395295811,1764593447940,-500.03829527,0.00016438,2]
[395295812,1764593447949,-500.03829527,0.00016438,2]
[395295813,1764593447958,-500.03829527,0.00016438,2]
[395295814,1764593447967,-500.03829527,0.00016438,2]
[395295815,1764593447976,-500.03829527,0.00016438,2]
[395295816,1764593447984,-500.03829527,0.00016438,2]
[395295817,1764593447993,-500.03829527,0.00016438,2]
[395295818,1764593448002,-500.03829527,0.00016438,2]
[395295819,1764593448011,-500.03829527,0.00016438,2]
[395295820,1764593448020,-500.03829527,0.00016438,2]
[395295821,1764593448029,-500.03829527,0.00016438,2]
[395295822,1764593448038,-500.03829527,0.00016438,2]
[395295823,1764593448047,-500.03829527,0.00016438,2]
[395295824,1764593448057,-500.03829527,0.00016438,2]
[395295825,1764593448066,-500.03829527,0.00016438,2]
[395295826,1764593448074,-500.03829527,0.00016438,2]
[395295827,1764593448083,-500.03829527,0.00016438,2]
[395295828,1764593448092,-500.03829527,0.00016438,2]
[395295829,1764593448102,-500.03829527,0.00016438,2]
[395295830,1764593448111,-500.03829527,0.00016438,2]
[395295831,1764593448120,-500.03829527,0.00016438,2]
[395295832,1764593448129,-500.03829527,0.00016438,2]
[395295833,1764593448138,-500.03829527,0.00016438,2]
[395295834,1764593448149,-500.03829527,0.00016438,2]
[395295835,1764593448158,-500.03829527,0.00016438,2]
[395295836,1764593448168,-500.03829527,0.00016438,2]
[395295837,1764593448178,-500.03829527,0.00016438,2]
[395295838,1764593448188,-500.03829527,0.00016438,2]
[395295839,1764593448197,-500.03829527,0.00016438,2]
[395295840,1764593448206,-500.03829527,0.00016438,2]
[395295841,1764593448215,-500.03829527,0.00016438,2]
[395295842,1764593448224,-500.03829527,0.00016438,2]
[395295843,1764593448234,-500.03829527,0.00016438,2]
[395295844,1764593448244,-500.03829527,0.00016438,2]
[395295845,1764593448254,-500.03829527,0.00016438,2]
[395295846,1764593448263,-500.03829527,0.00016438,2]
[395295847,1764593448274,-500.03829527,0.00016438,2]
[395295848,1764593448284,-500.03829527,0.00016438,2]
[395295849,1764593448294,-500.03829527,0.00016438,2]
[395295850,1764593448303,-500.03829527,0.00016438,2]
[395295851,1764593448313,-500.03829527,0.00016438,2]
[395295852,1764593448322,-500.03829527,0.00016438,2]
[395295853,1764593448333,-3713.22143878,0.00016438,2]
[395295854,1764593448343,-3713.22143878,0.00016438,2]
[395295855,1764593448354,-3713.22143878,0.00016438,2]
[395295856,1764593448366,-3713.22143878,0.00016438,2]
[395295857,1764593448376,-3713.22143878,0.00016438,2]
[395295858,1764593448386,-3713.22143878,0.00016438,2]
[395295859,1764593448396,-3713.22143878,0.00016438,2]
[395295860,1764593448410,-3713.22143878,0.00016438,2]
[395295861,1764593448421,-3713.22143878,0.00016438,2]
[395295862,1764593448431,-3713.22143878,0.00016438,2]
[395295863,1764593448441,-3713.22143878,0.00016438,2]
[395295864,1764593448451,-3713.22143878,0.00016438,2]
[395295865,1764593448461,-3713.22143878,0.00016438,2]
[395295866,1764593448472,-3713.22143878,0.00016438,2]
[395295867,1764593448482,-3713.22143878,0.00016438,2]
[395295868,1764593448493,-3713.22143878,0.00016438,2]
[395295869,1764593448503,-3713.22143878,0.00016438,2]
[395295870,1764593448512,-3713.22143878,0.00016438,2]
[395295871,1764593448522,-3713.22143878,0.00016438,2]
[395295872,1764593448531,-3713.22143878,0.00016438,2]
[395295873,1764593448540,-3713.22143878,0.00016438,2]
[395295874,1764593448549,-3713.22143878,0.00016438,2]
[395295875,1764593448558,-3713.22143878,0.00016438,2]
[395295876,1764593448568,-3713.22143878,0.00016438,2]
[395295877,1764593448576,-3713.22143878,0.00016438,2]
[395295878,1764593448585,-3713.22143878,0.00016438,2]
[395295879,1764593448595,-3713.22143878,0.00016438,2]
[395295880,1764593448604,-3713.22143878,0.00016438,2]
[395295881,1764593448614,-3713.22143878,0.00016438,2]
[395295882,1764593448623,-3713.22143878,0.00016438,2]
[395295883,1764593448632,-3713.22143878,0.00016438,2]
[395295884,1764593448643,-3713.22143878,0.00016438,2]
[395295885,1764593448655,-3713.22143878,0.00016438,2]
[395295886,1764593448664,-3713.22143878,0.00016438,2]
[395295887,1764593448675,-3713.22143875,0.00016438,2]
[395295888,1764593448685,-3713.22143875,0.00016438,2]
[395295889,1764593448694,-3713.22143875,0.00016438,2]
[395295890,1764593448703,-3713.22143875,0.00016438,2]
[395295891,1764593448712,-3713.22143875,0.00016438,2]
[395295892,1764593448721,-12938.74,0.00016438,2]
[395295893,1764593448731,-10792.87,0.00016438,2]
[395295894,1764593448741,-5369.57,0.00016438,2]
[395295895,1764593448750,-800.0,0.00016438,2]
[395295896,1764593448759,-225.2,0.00016438,2]
[395295897,1764593448768,-217.40010715,0.00016438,2]
[395295898,1764593448777,-2559.0,0.00016452,2]
[395295899,1764593448786,-465.96204167,0.00016468,2]
[395295900,1764593448795,-162.85978352,0.00016473,2]
[395295901,1764593448804,-200.0,0.00016485,2]
[395295902,1764593448814,-1000.0,0.000165,2]
[395295903,1764593448823,-940.57,0.00016503,2]
[395295904,1764593448833,-297.34550459,0.00016504,2]
[395295905,1764593448842,-500.0,0.00016504,2]
[395295906,1764593448851,-200.0,0.00016504,2]
[395295907,1764593448860,-1000.0,0.00016521,2]
[395295908,1764593448870,-1000.0,0.00016521,2]
[395295909,1764593448879,-1000.0,0.00016521,2]
[395295910,1764593448888,-938.4223103,0.00016521,2]
[395295911,1764593448897,-1000.0,0.00016521,2]
[395295912,1764593448906,-388.21665271,0.00016521,2]
[395295913,1764593448915,-500.62734798,0.00016521,2]
[395295914,1764593449195,-1000.0,0.00016521,2]
[395295915,1764593449205,-1000.0,0.00016521,2]
[395295916,1764593449214,-1000.0,0.00016521,2]
[395295917,1764593449224,-1000.0,0.00016521,2]
[395295918,1764593449233,-1000.0,0.00016521,2]
[395295919,1764593449243,-1000.0,0.00016521,2]
[395295920,1764593449252,-1000.0,0.00016521,2]
[395295921,1764593449262,-507.04514644,0.00016521,2]
[395295922,1764593449271,-1000.0,0.00016521,2]
[395295923,1764593449281,-500.0,0.00016521,2]
[395295924,1764593449290,-500.70186377,0.00016521,2]
[395295925,1764593449300,-503.91137404,0.00016521,2]
[395295926,1764593449310,-1000.0,0.00016521,2]
[395295927,1764593449319,-356.06806903,0.00016521,2]
[395295928,1764593449328,-500.0,0.00016521,2]
[395295929,1764593449337,-1000.0,0.00016521,2]
[395295930,1764593449347,-500.0,0.00016521,2]
[395295931,1764593449356,-978.0,0.00016535,2]
[395295932,1764593449365,-150.0,0.00016535,2]
[395295933,1764593449375,-500.0,0.00016535,2]
[395295934,1764593449384,-500.0,0.00016535,2]
[395295935,1764593449393,-1381.0,0.00016535,2]
[395295936,1764593449404,-500.0,0.00016535,2]
[395295937,1764593449413,-500.0,0.00016535,2]
[395295938,1764593449423,-500.0,0.00016535,2]
[395295939,1764593449432,-500.0,0.00016535,2]
[395295940,1764593449442,-150.0,0.00016535,2]
[395295941,1764593449451,-10119.0,0.00016567,2]
[395295942,1764593449462,-150.0,0.00016575,2]
[395295943,1764593449472,-2559.0,0.00016586,2]
[395295944,1764593449481,-200.0,0.0001665,2]
[395295945,1764593449492,-978.0,0.00016672,2]
[395295946,1764593449502,-150.0,0.00016672,2]
[395295947,1764593449511,-500.0,0.00016672,2]
[395295948,1764593449520,-500.0,0.00016672,2]
[395295949,1764593449530,-1381.0,0.00016672,2]
[395295950,1764593449539,-500.0,0.00016672,2]
[395295951,1764593449548,-500.0,0.00016672,2]
[395295952,1764593449557,-557.08566022,0.00016672,2]
[395295953,1764593449566,-300.0,0.00016672,2]
[395295954,1764593449576,-272.0,0.00016672,2]
[395295955,1764593449584,-1807.6298457,0.00016675,2]
[395295956,1764593449593,-427.65493559,0.00016683,2]
[395295957,1764593449603,-1000.0,0.000167,2]
[395295958,1764593449612,-3505.3708,0.00016709,2]
[395295959,1764593449621,-500.0,0.00016712,3]
[395295960,1764593449630,-176.06,0.00016712,2]
[395295961,1764593449640,-2559.0,0.00016743,2]
[395295962,1764593449649,-2559.0,0.00016747,2]
[395295963,1764593449659,-166.66,0.00016772,2]
[395295964,1764593449668,-940.57,0.00016777,2]
[395295965,1764593449677,-1000.0,0.000168,2]
[395295966,1764593449686,-978.0,0.00016809,2]
[395295967,1764593449695,-234.216869,0.00016809,2]
[395295968,1764593449704,-500.0,0.00016809,2]
[395295969,1764593449714,-500.0,0.00016809,2]
[395295970,1764593449723,-1381.0,0.00016809,2]
[395295971,1764593449732,-500.0,0.00016809,2]
[395295972,1764593449741,-500.0,0.00016809,2]
[395295973,1764593449750,-231.3,0.00016825,2]
[395295974,1764593449760,-2000.0,0.00016863,2]
[395295975,1764593449769,-200.0,0.00016863,2]
[395295976,1764593449778,-2000.0,0.00016864,2]
[395295977,1764593449787,-200.0,0.00016864,2]
[395295978,1764593449796,-200.0,0.00016864,2]
[395295979,1764593449805,-500.0,0.00016876,2]
[395295980,1764593449814,-500.0,0.00016876,2]
[395295981,1764593449823,-430.2573,0.00016898,2]
[395295982,1764593449834,-162.0,0.000169,2]
[395295983,1764593449843,-162.0,0.000169,2]
[395295984,1764593449852,-1000.0,0.000169,2]
[395295985,1764593449862,-678.88657749,0.000169,2]
[395295986,1764593449871,-173.10639828,0.000169,2]
[395295987,1764593449880,-553.64373807,0.0001692,2]
[395295988,1764593449889,-666.72878,0.0001692,2]
[395295989,1764593449899,-151.0,0.0001692,2]
[395295990,1764593449908,-978.0,0.00016946,2]
[395295991,1764593449917,-500.0,0.00016946,2]
[395295992,1764593449927,-500.0,0.00016946,2]
[395295993,1764593449936,-1381.0,0.00016946,2]
[395295994,1764593449949,-500.0,0.00016946,2]
[395295995,1764593449959,-228.69983249,0.00016946,2]
[395295996,1764593449968,-173.91709942,0.00016958,2]
[395295997,1764593449978,-6164.0,0.00016959,2]
[395295998,1764593449987,-500.0,0.00016986,4]
[395295999,1764593449996,-500.0,0.00016989,2]